[Event "Titled Tuesday Blitz July 25 Early 2023"]
[White "Yurtseven, Melih"]
[Black "Ramirez Vido, Robert Yorisan"]
[WhiteFideId "6312160"]
[BlackFideId "3513823"]
[WhiteElo "2513"]
[BlackElo "2397"]
[Result "1-0"]
[Round "6"]
[TimeControl "180+2"]
[Date "2023.07.25"]
[WhiteClock "0:00:31"]
[BlackClock "0:00:00"]
[Board "139"]

1. d4 {[%clk 0:02:56]}  g6 {[%clk 0:02:59]} 2. e4 {[%clk 0:02:55]}  d6 {[%clk 0:02:58]} 3. Nf3 {[%clk 0:02:55]}  Nf6 {[%clk 0:02:58]} 4. Nc3 {[%clk 0:02:55]}  Bg7 {[%clk 0:02:59]} 5. Be2 {[%clk 0:02:55]}  O-O {[%clk 0:02:59]} 6. O-O {[%clk 0:02:56]}  e5 {[%clk 0:02:58]} 7. dxe5 {[%clk 0:02:48]}  dxe5 {[%clk 0:02:59]} 8. Qxd8 {[%clk 0:02:49]}  Rxd8 {[%clk 0:03:00]} 9. Bg5 {[%clk 0:02:49]}  Bg4 {[%clk 0:02:52]} 10. Nd5 {[%clk 0:02:36]}  Nbd7 {[%clk 0:02:51]} 11. Nxc7 {[%clk 0:02:36]}  Rac8 {[%clk 0:02:47]} 12. Nd5 {[%clk 0:02:36]}  Nxd5 {[%clk 0:02:36]} 13. exd5 {[%clk 0:01:30]}  f6 {[%clk 0:02:36]} 14. Be3 {[%clk 0:01:30]}  Rxc2 {[%clk 0:02:32]} 15. Bd3 {[%clk 0:01:31]}  Rxb2 {[%clk 0:02:29]} 16. Bc4 {[%clk 0:01:30]}  Nb6 {[%clk 0:02:16]} 17. Bb3 {[%clk 0:01:29]}  Kh8 {[%clk 0:02:03]} 18. Rfe1 {[%clk 0:01:23]}  f5 {[%clk 0:01:47]} 19. Bg5 {[%clk 0:01:18]}  Re8 {[%clk 0:01:33]} 20. d6 {[%clk 0:01:18]}  Bxf3 {[%clk 0:01:11]} 21. gxf3 {[%clk 0:01:17]}  e4 {[%clk 0:01:08]} 22. Rad1 {[%clk 0:01:10]}  Rxb3 {[%clk 0:00:22]} 23. axb3 {[%clk 0:01:07]}  Nd7 {[%clk 0:00:22]} 24. fxe4 {[%clk 0:01:03]}  fxe4 {[%clk 0:00:22]} 25. f3 {[%clk 0:01:03]}  h6 {[%clk 0:00:20]} 26. Bc1 {[%clk 0:00:59]}  Ne5 {[%clk 0:00:20]} 27. fxe4 {[%clk 0:00:55]}  Nf3+ {[%clk 0:00:20]} 28. Kg2 {[%clk 0:00:55]}  Nxe1+ {[%clk 0:00:20]} 29. Rxe1 {[%clk 0:00:56]}  Be5 {[%clk 0:00:17]} 30. Ba3 {[%clk 0:00:56]}  Rd8 {[%clk 0:00:17]} 31. Rd1 {[%clk 0:00:56]}  Kg7 {[%clk 0:00:15]} 32. Rd5 {[%clk 0:00:57]}  Kf6 {[%clk 0:00:15]} 33. d7 {[%clk 0:00:57]}  Ke6 {[%clk 0:00:14]} 34. h4 {[%clk 0:00:53]}  Rxd7 {[%clk 0:00:14]} 35. Rb5 {[%clk 0:00:49]}  b6 {[%clk 0:00:13]} 36. Rb4 {[%clk 0:00:46]}  Rd4 {[%clk 0:00:09]} 37. Rxd4 {[%clk 0:00:40]}  Bxd4 {[%clk 0:00:10]} 38. Kf3 {[%clk 0:00:41]}  g5 {[%clk 0:00:09]} 39. Bc1 {[%clk 0:00:42]}  gxh4 {[%clk 0:00:09]} 40. Bxh6 {[%clk 0:00:42]}  h3 {[%clk 0:00:07]} 41. Kg3 {[%clk 0:00:40]}  Ke5 {[%clk 0:00:06]} 42. Kf3 {[%clk 0:00:40]}  Bg1 {[%clk 0:00:03]} 43. Bg7+ {[%clk 0:00:37]}  Ke6 {[%clk 0:00:03]} 44. Bc3 {[%clk 0:00:34]}  h2 {[%clk 0:00:03]} 45. Kg2 {[%clk 0:00:35]}  a6 {[%clk 0:00:00]} 46. b4 {[%clk 0:00:31]} 1-0


[Site "https://www.chess.com"]

[Event "Titled Tuesday Blitz July 25 Early 2023"]
[White "Shturman, Arseniy"]
[Black "Astafurov, Arseniy"]
[WhiteFideId "34275797"]
[BlackFideId "24175218"]
[WhiteElo "2504"]
[BlackElo "2388"]
[Result "0-1"]
[Round "6"]
[TimeControl "180+2"]
[Date "2023.07.25"]
[WhiteClock "0:00:00"]
[BlackClock "0:00:20"]
[Board "140"]

1. e4 {[%clk 0:03:00]}  c5 {[%clk 0:02:59]} 2. Nf3 {[%clk 0:03:00]}  e6 {[%clk 0:02:59]} 3. d4 {[%clk 0:03:00]}  cxd4 {[%clk 0:03:00]} 4. Nxd4 {[%clk 0:03:00]}  Nc6 {[%clk 0:03:01]} 5. Nc3 {[%clk 0:02:59]}  Qc7 {[%clk 0:03:02]} 6. Be3 {[%clk 0:02:58]}  a6 {[%clk 0:03:02]} 7. g4 {[%clk 0:02:58]}  Nge7 {[%clk 0:02:57]} 8. Qd2 {[%clk 0:02:48]}  Nxd4 {[%clk 0:02:57]} 9. Bxd4 {[%clk 0:02:45]}  Nc6 {[%clk 0:02:56]} 10. Be3 {[%clk 0:02:45]}  Ne5 {[%clk 0:02:45]} 11. Be2 {[%clk 0:02:42]}  b5 {[%clk 0:01:58]} 12. Qd4 {[%clk 0:02:13]}  Bb7 {[%clk 0:01:43]} 13. f4 {[%clk 0:02:08]}  Nc4 {[%clk 0:01:32]} 14. Bxc4 {[%clk 0:01:51]}  Qxc4 {[%clk 0:01:33]} 15. Qxc4 {[%clk 0:01:50]}  bxc4 {[%clk 0:01:34]} 16. O-O-O {[%clk 0:01:41]}  Bb4 {[%clk 0:00:58]} 17. Bd4 {[%clk 0:00:54]}  Bxc3 {[%clk 0:00:44]} 18. Bxc3 {[%clk 0:00:53]}  Bxe4 {[%clk 0:00:45]} 19. Rhf1 {[%clk 0:00:36]}  f6 {[%clk 0:00:38]} 20. Rd4 {[%clk 0:00:30]}  d5 {[%clk 0:00:35]} 21. g5 {[%clk 0:00:00]}  fxg5 {[%clk 0:00:20]} 0-1


[Site "https://www.chess.com"]

[Event "Titled Tuesday Blitz July 25 Early 2023"]
[White "Tarasova, Viktoriya"]
[Black "Shubenkova, Veronika"]
[WhiteFideId "4175840"]
[BlackFideId "44124040"]
[WhiteElo "2386"]
[BlackElo "2492"]
[Result "1/2-1/2"]
[Round "6"]
[TimeControl "180+2"]
[Date "2023.07.25"]
[WhiteClock "0:00:08"]
[BlackClock "0:00:08"]
[Board "142"]

1. d4 {[%clk 0:03:00]}  d5 {[%clk 0:03:00]} 2. c4 {[%clk 0:03:00]}  e6 {[%clk 0:03:00]} 3. Nc3 {[%clk 0:02:59]}  Nf6 {[%clk 0:03:00]} 4. cxd5 {[%clk 0:02:59]}  exd5 {[%clk 0:03:00]} 5. Bg5 {[%clk 0:02:59]}  Be7 {[%clk 0:02:59]} 6. e3 {[%clk 0:02:59]}  O-O {[%clk 0:03:00]} 7. Bd3 {[%clk 0:02:59]}  c6 {[%clk 0:03:00]} 8. Nge2 {[%clk 0:02:59]}  Nbd7 {[%clk 0:03:00]} 9. O-O {[%clk 0:02:58]}  Re8 {[%clk 0:03:01]} 10. Qc2 {[%clk 0:02:56]}  Nf8 {[%clk 0:03:01]} 11. f3 {[%clk 0:02:54]}  h6 {[%clk 0:03:00]} 12. Bh4 {[%clk 0:02:54]}  b5 {[%clk 0:03:00]} 13. Rae1 {[%clk 0:02:51]}  Bd7 {[%clk 0:02:55]} 14. e4 {[%clk 0:02:48]}  dxe4 {[%clk 0:02:50]} 15. fxe4 {[%clk 0:02:39]}  Ng4 {[%clk 0:02:49]} 16. Bxe7 {[%clk 0:02:28]}  Qxe7 {[%clk 0:02:50]} 17. Qd2 {[%clk 0:02:26]}  b4 {[%clk 0:02:49]} 18. Na4 {[%clk 0:02:20]}  Nf6 {[%clk 0:02:34]} 19. Ng3 {[%clk 0:02:17]}  Ne6 {[%clk 0:02:25]} 20. Nf5 {[%clk 0:02:16]}  Qf8 {[%clk 0:02:25]} 21. Qf2 {[%clk 0:01:58]}  Nh7 {[%clk 0:02:18]} 22. d5 {[%clk 0:01:43]}  cxd5 {[%clk 0:02:16]} 23. exd5 {[%clk 0:01:35]}  Nc7 {[%clk 0:02:14]} 24. d6 {[%clk 0:01:01]}  Bxf5 {[%clk 0:01:53]} 25. Bxf5 {[%clk 0:00:31]}  Qxd6 {[%clk 0:01:34]} 26. Bxh7+ {[%clk 0:00:31]}  Kxh7 {[%clk 0:01:34]} 27. Qxf7 {[%clk 0:00:31]}  Rxe1 {[%clk 0:01:28]} 28. Rxe1 {[%clk 0:00:31]}  Rf8 {[%clk 0:01:27]} 29. Qb3 {[%clk 0:00:29]}  Qd2 {[%clk 0:01:21]} 30. Qe3 {[%clk 0:00:19]}  Qd6 {[%clk 0:01:06]} 31. h3 {[%clk 0:00:14]}  Nb5 {[%clk 0:01:01]} 32. Nc5 {[%clk 0:00:11]}  Nd4 {[%clk 0:00:45]} 33. Ne4 {[%clk 0:00:10]}  Qb6 {[%clk 0:00:30]} 34. Kh1 {[%clk 0:00:06]}  Rd8 {[%clk 0:00:09]} 35. Rd1 {[%clk 0:00:05]}  Kh8 {[%clk 0:00:06]} 36. Rd3 {[%clk 0:00:05]}  Ne6 {[%clk 0:00:03]} 37. Qxb6 {[%clk 0:00:03]}  axb6 {[%clk 0:00:04]} 38. Rxd8+ {[%clk 0:00:04]}  Nxd8 {[%clk 0:00:05]} 39. Nd6 {[%clk 0:00:03]}  Nc6 {[%clk 0:00:05]} 40. Nc4 {[%clk 0:00:02]}  b5 {[%clk 0:00:05]} 41. Nd6 {[%clk 0:00:03]}  Nd4 {[%clk 0:00:05]} 42. Kg1 {[%clk 0:00:03]}  Kh7 {[%clk 0:00:05]} 43. Kf2 {[%clk 0:00:04]}  Kg6 {[%clk 0:00:05]} 44. Ke3 {[%clk 0:00:04]}  Nc2+ {[%clk 0:00:04]} 45. Kd2 {[%clk 0:00:05]}  Nd4 {[%clk 0:00:04]} 46. Kd3 {[%clk 0:00:05]}  Nc6 {[%clk 0:00:02]} 47. Nxb5 {[%clk 0:00:05]}  Kf5 {[%clk 0:00:03]} 48. Kc4 {[%clk 0:00:05]}  Kf4 {[%clk 0:00:03]} 49. Kc5 {[%clk 0:00:06]}  Ne5 {[%clk 0:00:03]} 50. Kxb4 {[%clk 0:00:06]}  Kg3 {[%clk 0:00:03]} 51. a4 {[%clk 0:00:06]}  Kxg2 {[%clk 0:00:03]} 52. a5 {[%clk 0:00:05]}  Kxh3 {[%clk 0:00:03]} 53. a6 {[%clk 0:00:05]}  g5 {[%clk 0:00:03]} 54. Kc5 {[%clk 0:00:04]}  Nd7+ {[%clk 0:00:03]} 55. Kc6 {[%clk 0:00:04]}  Nb8+ {[%clk 0:00:04]} 56. Kb7 {[%clk 0:00:04]}  Nxa6 {[%clk 0:00:04]} 57. Kxa6 {[%clk 0:00:05]}  g4 {[%clk 0:00:05]} 58. Nd4 {[%clk 0:00:05]}  g3 {[%clk 0:00:05]} 59. Ne2 {[%clk 0:00:05]}  g2 {[%clk 0:00:06]} 60. b4 {[%clk 0:00:06]}  Kg4 {[%clk 0:00:06]} 61. b5 {[%clk 0:00:06]}  Kf3 {[%clk 0:00:06]} 62. Ng1+ {[%clk 0:00:07]}  Kf2 {[%clk 0:00:07]} 63. Nh3+ {[%clk 0:00:08]}  Kg3 {[%clk 0:00:07]} 64. Ng1 {[%clk 0:00:08]}  Kf2 {[%clk 0:00:07]} 65. Nh3+ {[%clk 0:00:08]}  Kg3 {[%clk 0:00:08]} 66. Ng1 {[%clk 0:00:08]}  Kf2 {[%clk 0:00:08]} 1/2-1/2


[Site "https://www.chess.com"]

[Event "Titled Tuesday Blitz July 25 Early 2023"]
[White "Taboas Rodriguez, Daniel"]
[Black "Qiao, Cindy"]
[WhiteFideId "2208466"]
[BlackFideId "2620243"]
[WhiteElo "2491"]
[BlackElo "2381"]
[Result "1-0"]
[Round "6"]
[TimeControl "180+2"]
[Date "2023.07.25"]
[WhiteClock "0:01:06"]
[BlackClock "0:00:15"]
[Board "143"]

1. d4 {[%clk 0:03:00]}  d5 {[%clk 0:03:00]} 2. Nf3 {[%clk 0:03:00]}  Nf6 {[%clk 0:03:00]} 3. c4 {[%clk 0:03:01]}  e6 {[%clk 0:03:00]} 4. Bg5 {[%clk 0:03:01]}  Be7 {[%clk 0:03:01]} 5. Nc3 {[%clk 0:03:01]}  Nbd7 {[%clk 0:03:01]} 6. Rc1 {[%clk 0:03:00]}  c6 {[%clk 0:03:01]} 7. e3 {[%clk 0:03:00]}  dxc4 {[%clk 0:03:00]} 8. Bxc4 {[%clk 0:03:01]}  b5 {[%clk 0:03:00]} 9. Bd3 {[%clk 0:03:01]}  Bb7 {[%clk 0:03:00]} 10. O-O {[%clk 0:03:01]}  a6 {[%clk 0:03:00]} 11. Bxf6 {[%clk 0:03:01]}  Bxf6 {[%clk 0:02:55]} 12. Ne4 {[%clk 0:03:01]}  Be7 {[%clk 0:02:47]} 13. Qc2 {[%clk 0:02:58]}  h6 {[%clk 0:02:44]} 14. Rfd1 {[%clk 0:02:58]}  O-O {[%clk 0:02:39]} 15. Nc5 {[%clk 0:02:59]}  Qc7 {[%clk 0:02:25]} 16. Nxd7 {[%clk 0:02:56]}  Qxd7 {[%clk 0:02:24]} 17. Ne5 {[%clk 0:02:56]}  Qd8 {[%clk 0:02:13]} 18. Nxc6 {[%clk 0:02:56]}  Bxc6 {[%clk 0:02:12]} 19. Qxc6 {[%clk 0:02:57]}  Qa5 {[%clk 0:02:04]} 20. a3 {[%clk 0:02:55]}  b4 {[%clk 0:02:03]} 21. Qc7 {[%clk 0:02:36]}  Qg5 {[%clk 0:01:41]} 22. f4 {[%clk 0:02:16]}  Qh4 {[%clk 0:01:35]} 23. g3 {[%clk 0:02:15]}  Qf6 {[%clk 0:01:35]} 24. a4 {[%clk 0:02:13]}  Rfd8 {[%clk 0:01:18]} 25. Qe5 {[%clk 0:02:08]}  a5 {[%clk 0:01:07]} 26. Rc6 {[%clk 0:01:53]}  Rd5 {[%clk 0:00:59]} 27. Qxf6 {[%clk 0:01:48]}  Bxf6 {[%clk 0:00:59]} 28. Rdc1 {[%clk 0:01:42]}  g6 {[%clk 0:01:00]} 29. Be4 {[%clk 0:01:33]}  Rdd8 {[%clk 0:00:56]} 30. R6c5 {[%clk 0:01:32]}  Ra7 {[%clk 0:00:53]} 31. Rb5 {[%clk 0:01:26]}  Kg7 {[%clk 0:00:51]} 32. Rcc5 {[%clk 0:01:26]}  Rad7 {[%clk 0:00:30]} 33. Bc6 {[%clk 0:01:17]}  Rd6 {[%clk 0:00:28]} 34. Rxa5 {[%clk 0:01:16]}  Bxd4 {[%clk 0:00:28]} 35. exd4 {[%clk 0:01:16]}  Rxd4 {[%clk 0:00:29]} 36. Rc2 {[%clk 0:01:11]}  b3 {[%clk 0:00:27]} 37. Rf2 {[%clk 0:01:09]}  Rc4 {[%clk 0:00:27]} 38. Bf3 {[%clk 0:01:05]}  Rc1+ {[%clk 0:00:18]} 39. Kg2 {[%clk 0:01:05]}  Rc2 {[%clk 0:00:19]} 40. Rb5 {[%clk 0:01:04]}  Rxf2+ {[%clk 0:00:17]} 41. Kxf2 {[%clk 0:01:05]}  Rd2+ {[%clk 0:00:18]} 42. Be2 {[%clk 0:01:06]}  Rxb2 {[%clk 0:00:15]} 43. a5 {[%clk 0:01:06]} 1-0


[Site "https://www.chess.com"]

[Event "Titled Tuesday Blitz July 25 Early 2023"]
[White "Melikhov, Evgeny V."]
[Black "Schlecht, Daniel, Dr."]
[WhiteFideId "4122046"]
[BlackFideId "4623959"]
[WhiteElo "2379"]
[BlackElo "2490"]
[Result "0-1"]
[Round "6"]
[TimeControl "180+2"]
[Date "2023.07.25"]
[WhiteClock "0:00:38"]
[BlackClock "0:01:42"]
[Board "144"]

1. d4 {[%clk 0:03:00]}  Nf6 {[%clk 0:02:59]} 2. c4 {[%clk 0:03:00]}  g6 {[%clk 0:02:59]} 3. Nc3 {[%clk 0:03:00]}  d5 {[%clk 0:02:59]} 4. cxd5 {[%clk 0:02:58]}  Nxd5 {[%clk 0:03:00]} 5. e4 {[%clk 0:02:58]}  Nxc3 {[%clk 0:03:00]} 6. bxc3 {[%clk 0:02:59]}  Bg7 {[%clk 0:03:01]} 7. Bc4 {[%clk 0:02:57]}  O-O {[%clk 0:02:58]} 8. Ne2 {[%clk 0:02:57]}  c5 {[%clk 0:02:59]} 9. Be3 {[%clk 0:02:55]}  Nc6 {[%clk 0:02:59]} 10. h4 {[%clk 0:02:53]}  cxd4 {[%clk 0:02:54]} 11. cxd4 {[%clk 0:02:53]}  Qa5+ {[%clk 0:02:55]} 12. Kf1 {[%clk 0:02:51]}  b5 {[%clk 0:02:43]} 13. Bb3 {[%clk 0:02:46]}  Ba6 {[%clk 0:02:32]} 14. h5 {[%clk 0:02:38]}  b4 {[%clk 0:02:31]} 15. hxg6 {[%clk 0:02:32]}  hxg6 {[%clk 0:02:32]} 16. Rc1 {[%clk 0:02:25]}  Rac8 {[%clk 0:02:29]} 17. Bh6 {[%clk 0:02:15]}  Nxd4 {[%clk 0:02:13]} 18. Bxg7 {[%clk 0:01:58]}  Bxe2+ {[%clk 0:02:09]} 19. Kg1 {[%clk 0:01:55]}  Bxd1 {[%clk 0:02:02]} 20. Bxd4 {[%clk 0:01:55]}  e5 {[%clk 0:01:59]} 21. Rxd1 {[%clk 0:01:16]}  exd4 {[%clk 0:01:56]} 22. g3 {[%clk 0:01:06]}  Qe5 {[%clk 0:01:54]} 23. Rh4 {[%clk 0:01:03]}  Kg7 {[%clk 0:01:51]} 24. Kg2 {[%clk 0:01:00]}  Rh8 {[%clk 0:01:51]} 25. Rf4 {[%clk 0:01:01]}  f6 {[%clk 0:01:43]} 26. Kf3 {[%clk 0:00:38]}  Rc3+ {[%clk 0:01:42]} 0-1


[Site "https://www.chess.com"]

[Event "Titled Tuesday Blitz July 25 Early 2023"]
[White "Topalov, Aleksandar"]
[Black "Karamsetty, Jeevan"]
[WhiteFideId "925659"]
[BlackFideId "2025337"]
[WhiteElo "2377"]
[BlackElo "2485"]
[Result "0-1"]
[Round "6"]
[TimeControl "180+2"]
[Date "2023.07.25"]
[WhiteClock "0:00:01"]
[BlackClock "0:00:02"]
[Board "145"]

1. b3 {[%clk 0:03:00]}  d6 {[%clk 0:02:58]} 2. Bb2 {[%clk 0:02:57]}  Nd7 {[%clk 0:02:58]} 3. c4 {[%clk 0:02:49]}  Ngf6 {[%clk 0:02:59]} 4. g3 {[%clk 0:02:46]}  g6 {[%clk 0:02:58]} 5. Bg2 {[%clk 0:02:47]}  Bg7 {[%clk 0:02:59]} 6. Nf3 {[%clk 0:02:44]}  O-O {[%clk 0:03:00]} 7. O-O {[%clk 0:02:44]}  e5 {[%clk 0:02:58]} 8. d4 {[%clk 0:02:43]}  Qe7 {[%clk 0:02:44]} 9. Nc3 {[%clk 0:02:39]}  exd4 {[%clk 0:02:38]} 10. Nxd4 {[%clk 0:02:39]}  Nc5 {[%clk 0:02:31]} 11. Re1 {[%clk 0:02:34]}  Ne6 {[%clk 0:02:28]} 12. Qd2 {[%clk 0:02:17]}  a6 {[%clk 0:02:09]} 13. Rac1 {[%clk 0:02:16]}  Rb8 {[%clk 0:02:09]} 14. Nd5 {[%clk 0:02:11]}  Nxd5 {[%clk 0:02:04]} 15. cxd5 {[%clk 0:02:11]}  Nc5 {[%clk 0:01:55]} 16. Qc2 {[%clk 0:01:56]}  a5 {[%clk 0:01:44]} 17. a3 {[%clk 0:01:54]}  Na6 {[%clk 0:01:36]} 18. Nb5 {[%clk 0:01:46]}  Bxb2 {[%clk 0:01:15]} 19. Qxb2 {[%clk 0:01:46]}  b6 {[%clk 0:01:05]} 20. Rc4 {[%clk 0:01:20]}  Rb7 {[%clk 0:01:03]} 21. Rec1 {[%clk 0:01:17]}  Bd7 {[%clk 0:00:48]} 22. Nxc7 {[%clk 0:01:04]}  Nc5 {[%clk 0:00:48]} 23. b4 {[%clk 0:00:55]}  Rxc7 {[%clk 0:00:44]} 24. bxc5 {[%clk 0:00:55]}  bxc5 {[%clk 0:00:43]} 25. Qb6 {[%clk 0:00:42]}  Rfc8 {[%clk 0:00:28]} 26. Qxa5 {[%clk 0:00:38]}  Rb7 {[%clk 0:00:28]} 27. Re4 {[%clk 0:00:30]}  Qg5 {[%clk 0:00:26]} 28. Qc3 {[%clk 0:00:23]}  Rb3 {[%clk 0:00:20]} 29. Qa1 {[%clk 0:00:19]}  Rcb8 {[%clk 0:00:19]} 30. h4 {[%clk 0:00:18]}  Qd8 {[%clk 0:00:18]} 31. Rec4 {[%clk 0:00:17]}  Bf5 {[%clk 0:00:18]} 32. e4 {[%clk 0:00:16]}  Bd7 {[%clk 0:00:19]} 33. R4c3 {[%clk 0:00:16]}  Rb2 {[%clk 0:00:17]} 34. R3c2 {[%clk 0:00:16]}  R2b3 {[%clk 0:00:17]} 35. Rc3 {[%clk 0:00:16]}  R3b5 {[%clk 0:00:16]} 36. Re3 {[%clk 0:00:13]}  Qa5 {[%clk 0:00:13]} 37. e5 {[%clk 0:00:13]}  dxe5 {[%clk 0:00:12]} 38. Qxe5 {[%clk 0:00:13]}  Bf5 {[%clk 0:00:12]} 39. d6 {[%clk 0:00:12]}  Rd8 {[%clk 0:00:10]} 40. Rec3 {[%clk 0:00:10]}  Rb6 {[%clk 0:00:08]} 41. Rxc5 {[%clk 0:00:10]}  Qxa3 {[%clk 0:00:07]} 42. Rc6 {[%clk 0:00:10]}  Rbb8 {[%clk 0:00:06]} 43. d7 {[%clk 0:00:09]}  Bxd7 {[%clk 0:00:05]} 44. R6c3 {[%clk 0:00:08]}  Qa7 {[%clk 0:00:04]} 45. Rd1 {[%clk 0:00:07]}  Be6 {[%clk 0:00:04]} 46. Rxd8+ {[%clk 0:00:07]}  Rxd8 {[%clk 0:00:05]} 47. Re3 {[%clk 0:00:06]}  Qd7 {[%clk 0:00:05]} 48. Kh2 {[%clk 0:00:07]}  h5 {[%clk 0:00:05]} 49. Qg5 {[%clk 0:00:06]}  Re8 {[%clk 0:00:05]} 50. Re5 {[%clk 0:00:06]}  Qc8 {[%clk 0:00:05]} 51. Bf3 {[%clk 0:00:06]}  Kg7 {[%clk 0:00:05]} 52. Bxh5 {[%clk 0:00:06]}  Qc2 {[%clk 0:00:03]} 53. Re3 {[%clk 0:00:05]}  Qxf2+ {[%clk 0:00:03]} 54. Kh1 {[%clk 0:00:05]}  Bd5+ {[%clk 0:00:03]} 55. Bf3 {[%clk 0:00:04]}  Rxe3 {[%clk 0:00:03]} 56. Qe5+ {[%clk 0:00:01]}  Rxe5 {[%clk 0:00:02]} 0-1


[Site "https://www.chess.com"]

[Event "Titled Tuesday Blitz July 25 Early 2023"]
[White "Slavin, Alexey"]
[Black "luksona14"]
[WhiteFideId "24104388"]
[WhiteElo "2361"]
[BlackElo "2485"]
[Result "0-1"]
[Round "6"]
[TimeControl "180+2"]
[Date "2023.07.25"]
[WhiteClock "0:00:29"]
[BlackClock "0:01:28"]
[Board "147"]

1. e4 {[%clk 0:02:58]}  c5 {[%clk 0:02:57]} 2. g3 {[%clk 0:02:58]}  Nc6 {[%clk 0:02:58]} 3. Bg2 {[%clk 0:02:59]}  d6 {[%clk 0:02:58]} 4. Ne2 {[%clk 0:02:59]}  g6 {[%clk 0:02:59]} 5. O-O {[%clk 0:02:59]}  Bg7 {[%clk 0:03:00]} 6. Nbc3 {[%clk 0:03:00]}  e6 {[%clk 0:03:00]} 7. a3 {[%clk 0:03:00]}  Nge7 {[%clk 0:03:01]} 8. Rb1 {[%clk 0:03:01]}  O-O {[%clk 0:03:01]} 9. b4 {[%clk 0:03:01]}  b6 {[%clk 0:03:01]} 10. d3 {[%clk 0:03:00]}  Bb7 {[%clk 0:03:00]} 11. Bd2 {[%clk 0:03:00]}  Nd4 {[%clk 0:02:57]} 12. Nxd4 {[%clk 0:02:59]}  cxd4 {[%clk 0:02:58]} 13. Ne2 {[%clk 0:02:59]}  Rc8 {[%clk 0:02:59]} 14. Rc1 {[%clk 0:02:57]}  Bc6 {[%clk 0:02:55]} 15. c4 {[%clk 0:02:54]}  dxc3 {[%clk 0:02:56]} 16. Bxc3 {[%clk 0:02:54]}  e5 {[%clk 0:02:54]} 17. f4 {[%clk 0:02:53]}  Qd7 {[%clk 0:02:45]} 18. Qb3 {[%clk 0:02:50]}  Ba4 {[%clk 0:02:44]} 19. Qa2 {[%clk 0:02:49]}  Bb5 {[%clk 0:02:41]} 20. Qd2 {[%clk 0:02:44]}  d5 {[%clk 0:02:41]} 21. Bxe5 {[%clk 0:02:41]}  f6 {[%clk 0:02:40]} 22. Bb2 {[%clk 0:02:37]}  dxe4 {[%clk 0:02:40]} 23. Bxe4 {[%clk 0:02:36]}  f5 {[%clk 0:02:40]} 24. Bxg7 {[%clk 0:02:33]}  Kxg7 {[%clk 0:02:40]} 25. Qb2+ {[%clk 0:02:32]}  Kh6 {[%clk 0:02:31]} 26. Bg2 {[%clk 0:02:17]}  Qxd3 {[%clk 0:02:30]} 27. Nd4 {[%clk 0:02:13]}  Bc4 {[%clk 0:02:20]} 28. Rfd1 {[%clk 0:02:00]}  Qe3+ {[%clk 0:02:19]} 29. Kh1 {[%clk 0:02:00]}  Bd5 {[%clk 0:02:17]} 30. Rxc8 {[%clk 0:01:53]}  Bxg2+ {[%clk 0:02:16]} 31. Qxg2 {[%clk 0:01:53]}  Rxc8 {[%clk 0:02:16]} 32. Nf3 {[%clk 0:01:41]}  Rc1 {[%clk 0:02:08]} 33. Qf1 {[%clk 0:01:18]}  Rxd1 {[%clk 0:02:06]} 34. Qxd1 {[%clk 0:01:19]}  Qxa3 {[%clk 0:02:06]} 35. Ng5 {[%clk 0:01:17]}  Qxb4 {[%clk 0:02:00]} 36. Qd8 {[%clk 0:01:11]}  Qe1+ {[%clk 0:01:50]} 37. Kg2 {[%clk 0:01:11]}  Qe2+ {[%clk 0:01:50]} 38. Kh3 {[%clk 0:01:10]}  Kh5 {[%clk 0:01:29]} 39. g4+ {[%clk 0:00:29]}  Qxg4# {[%clk 0:01:28]} 0-1


[Site "https://www.chess.com"]

[Event "Titled Tuesday Blitz July 25 Early 2023"]
[White "marik_spb"]
[Black "Fajdetic, Hrvoje"]
[BlackFideId "14501945"]
[WhiteElo "2484"]
[BlackElo "2359"]
[Result "1-0"]
[Round "6"]
[TimeControl "180+2"]
[Date "2023.07.25"]
[WhiteClock "0:00:34"]
[BlackClock "0:00:06"]
[Board "148"]

1. e4 {[%clk 0:02:42]}  c5 {[%clk 0:02:53]} 2. c3 {[%clk 0:02:39]}  d5 {[%clk 0:02:52]} 3. exd5 {[%clk 0:02:39]}  Qxd5 {[%clk 0:02:53]} 4. Nf3 {[%clk 0:02:39]}  Bg4 {[%clk 0:02:52]} 5. d4 {[%clk 0:02:40]}  Nf6 {[%clk 0:02:51]} 6. dxc5 {[%clk 0:02:39]}  Bxf3 {[%clk 0:02:38]} 7. Qxf3 {[%clk 0:02:35]}  Qxf3 {[%clk 0:02:37]} 8. gxf3 {[%clk 0:02:35]}  e6 {[%clk 0:02:37]} 9. Be3 {[%clk 0:02:35]}  a5 {[%clk 0:02:26]} 10. Bb5+ {[%clk 0:02:30]}  Nc6 {[%clk 0:02:21]} 11. Nd2 {[%clk 0:02:04]}  Nd5 {[%clk 0:02:12]} 12. Nb3 {[%clk 0:01:33]}  Be7 {[%clk 0:01:45]} 13. a4 {[%clk 0:01:25]}  O-O {[%clk 0:01:44]} 14. O-O-O {[%clk 0:01:23]}  Ne5 {[%clk 0:01:26]} 15. f4 {[%clk 0:00:53]}  Ng4 {[%clk 0:01:18]} 16. Rde1 {[%clk 0:00:40]}  Rac8 {[%clk 0:01:04]} 17. f5 {[%clk 0:00:40]}  Ndxe3 {[%clk 0:00:47]} 18. fxe3 {[%clk 0:00:41]}  Bg5 {[%clk 0:00:42]} 19. fxe6 {[%clk 0:00:40]}  fxe6 {[%clk 0:00:37]} 20. Bd7 {[%clk 0:00:39]}  Nxe3 {[%clk 0:00:30]} 21. Bxe6+ {[%clk 0:00:39]}  Kh8 {[%clk 0:00:30]} 22. Bxc8 {[%clk 0:00:39]}  Ng2+ {[%clk 0:00:20]} 23. Kb1 {[%clk 0:00:39]}  Nxe1 {[%clk 0:00:19]} 24. Bxb7 {[%clk 0:00:39]}  Nd3 {[%clk 0:00:18]} 25. c6 {[%clk 0:00:39]}  Bf4 {[%clk 0:00:15]} 26. Rf1 {[%clk 0:00:35]}  Rf6 {[%clk 0:00:14]} 27. Rxf4 {[%clk 0:00:32]}  Nxf4 {[%clk 0:00:13]} 28. c7 {[%clk 0:00:33]}  Rf8 {[%clk 0:00:12]} 29. c8=Q {[%clk 0:00:32]}  Rxc8 {[%clk 0:00:13]} 30. Bxc8 {[%clk 0:00:33]}  g5 {[%clk 0:00:11]} 31. Nxa5 {[%clk 0:00:32]}  h5 {[%clk 0:00:11]} 32. Nc4 {[%clk 0:00:33]}  Nd3 {[%clk 0:00:09]} 33. a5 {[%clk 0:00:33]}  Nc5 {[%clk 0:00:10]} 34. a6 {[%clk 0:00:33]}  Nxa6 {[%clk 0:00:08]} 35. Bxa6 {[%clk 0:00:34]}  g4 {[%clk 0:00:09]} 36. b4 {[%clk 0:00:35]}  Kg7 {[%clk 0:00:10]} 37. b5 {[%clk 0:00:35]}  Kf6 {[%clk 0:00:11]} 38. b6 {[%clk 0:00:35]}  h4 {[%clk 0:00:11]} 39. b7 {[%clk 0:00:35]}  g3 {[%clk 0:00:11]} 40. hxg3 {[%clk 0:00:36]}  h3 {[%clk 0:00:11]} 41. b8=Q {[%clk 0:00:36]}  h2 {[%clk 0:00:12]} 42. Qe5+ {[%clk 0:00:37]}  Kg6 {[%clk 0:00:11]} 43. Qe4+ {[%clk 0:00:35]}  Kg5 {[%clk 0:00:11]} 44. Qh4+ {[%clk 0:00:35]}  Kg6 {[%clk 0:00:11]} 45. Qxh2 {[%clk 0:00:33]}  Kg5 {[%clk 0:00:06]} 46. Qh4+ {[%clk 0:00:34]} 1-0


[Site "https://www.chess.com"]